Cogmind - Beta 13 @@@ ROGUE MODE // 2024.04.05 @ 14:24:27 Player: writers.room Result: Destroyed by G-34 Mercenary with Small Laser Performance ------------- Evolutions (0) 0 Regions Visited (1) 200 Robots Destroyed (5) 25 Value Destroyed (132) 132 Prototype IDs (0) 0 Alien Tech Used (0) 0 Bonus (0) 0 TOTAL SCORE: 357 Bonus ------- None Cogmind --------- Core Integrity 0/250 Matter 300/300 Energy 98/100 System Corruption 0% Temperature Warning (317) Movement Core (50) Location -10/Materials Parts ------- > --- POWER (1) -------- (None) > --- PROPULSION (2) --- (None) > --- UTILITY (2) ------ (None) > --- WEAPON (2) ------- Medium Laser > --- INVENTORY (5) ---- (None) Peak State ------------ > --- POWER ------------ Ion Engine > --- PROPULSION ------- Aluminum Leg Aluminum Leg > --- UTILITY ---------- Seismic Detector > --- WEAPON ----------- EM Pulse Gun Grenade Launcher > --- INVENTORY -------- Medium Laser Welding Torch [Rating: 6] Favorites ----------- Power Ion Engine Engine Ion Engine Propulsion Aluminum Leg Leg Aluminum Leg Utility Seismic Detector Device Seismic Detector Weapon Grenade Launcher Energy Gun Medium Laser Launcher Grenade Launcher Special Weapon Welding Torch Build | -11 -10 ------- Run | Yrd Mat Slots Evolved . | . . Power . | . . Propulsion . | . . Utility . | . . Weapon . | . . Parts Attached 12 | 4 8 Power 2 | 1 1 Engine 2 | 1 1 Core . | . . Reactor . | . . Propulsion 2 | 2 . Treads . | . . Leg 2 | 2 . Wheel . | . . Hover . | . . Flight . | . . Utility 1 | . 1 Device 1 | . 1 Storage . | . . Processor . | . . Hackware . | . . Protection . | . . Artifact . | . . Weapon 7 | 1 6 Energy Gun 3 | 1 2 Energy Cannon . | . . Ballistic Gun . | . . Ballistic Cannon . | . . Launcher 2 | . 2 Special Weapon 2 | . 2 Impact Weapon . | . . Slashing Weapon . | . . Piercing Weapon . | . . Special Melee Weapon . | . . Unidentified Prototypes . | . . Parts Lost 7 | . 7 Power 1 | . 1 Propulsion 2 | . 2 Utility 1 | . 1 Weapon 3 | . 3 Highest Loss Streak 6 | . 6 To Critical Strikes . | . . Average Slot Usage (%) 68 | . 68 Engine 13 | . 13 Leg 26 | . 26 Device 4 | . 4 Energy Gun 8 | . 8 Launcher 9 | . 9 Special Weapon 5 | . 5 Naked Turns . | . . Heaviest Build 11 | 7 11 Greatest Support 20 | 20 20 Greatest Overweight (x) . | . . Average Overweight (x) . | . . Largest Inventory Capacity 5 | 5 5 Average Capacity 5 | 5 5 Most Carried 3 | . 3 Average Carried . | . . Final Capacity 5 | 5 5 Final Carried . | . . Class Distribution -------------------- 100% | Mutant Dominant Class ---------------- Mutant | -10/Materials Resources | -11 -10 ----------- Run | Yrd Mat Matter Collected 295 | 141 154 Remotely . | . . Salvage Created 183 | . 183 Parts 8 | . 8 Haulers Intercepted . | . . Recyclers Shooed . | . . Parts Field Recycled . | . . Retrieved Matter . | . . Parts Self-Destructed . | . . Prevented . | . . Kills | -11 -10 ------- Run | Yrd Mat Combat Hostiles Destroyed 3 | . 3 Guns 2 | . 2 Classes Destroyed 3 | . 3 Worker 1 | . 1 Watcher 1 | . 1 Grunt 3 | . 3 Best Kill Streak 2 | . 2 Combat Bots Only 1 | . 1 Max Kills in Single Turn 1 | . 1 Gunslinging . | . . Exploded . | . . Melee . | . . Uniques/NPCs Destroyed . | . . Combat | -11 -10 -------- Run | Yrd Mat Hostile Shots Fired 74 | . 74 Missed 10 | . 10 Damage Taken 751 | . 751 Core 258 | . 258 Absorbed by Shields . | . . Core Remaining (%) 100 | 100 . Volleys Fired 46 | . 46 Largest 2 | . 2 Hottest 70 | . 70 Shots Fired 48 | . 48 Gun 32 | . 32 Cannon . | . . Launcher . | . . Special 16 | . 16 Kinetic . | . . Thermal 29 | . 29 Explosive . | . . Electromagnetic 19 | . 19 Robot Hit Streak 8 | . 8 Robot Miss Streak 3 | . 3 Penetration Max . | . . Secondary Targets . | . . Shots Hit Robots 20 | . 20 Core Hits 9 | . 9 Critical Kills . | . . Critical Parts Destroyed . | . . Critical Strikes 1 | . 1 Burn 1 | . 1 Melee Attacks . | . . Impact . | . . Slashing . | . . Piercing . | . . Sneak Attacks . | . . Combat Hostiles . | . . Follow-up Attacks . | . . Damage Inflicted 289 | . 289 Guns 289 | . 289 Cannons . | . . Explosions . | . . Melee . | . . Ramming . | . . Kinetic . | . . Thermal 114 | . 114 Explosive . | . . Electromagnetic 175 | . 175 Impact . | . . Slashing . | . . Piercing . | . . Highest Corruption . | . . Average Corruption . | . . Corruption Purged . | . . Corruption Blocked . | . . Overload Shots . | . . Overflow Damage . | . . Projectiles . | . . Explosions . | . . Melee . | . . Knockbacks . | . . Impact . | . . Kinetic . | . . Secondary . | . . Self-Inflicted Damage . | . . Shots . | . . Rammed . | . . Targets Rammed . | . . Kicked . | . . Crushed . | . . Highest Temperature 336 | . 336 Average Temperature 114 | . 114 Received Heat Transfer 414 | . 414 Effects 2 | . 2 Short Circuit 1 | . 1 Damage (minor) 1 | . 1 Siege Activations . | . . Robots Corrupted 1 | . 1 Combat Hostiles 1 | . 1 Parts Fried 2 | . 2 Impact Corruptions . | . . Robots Melted . | . . Combat Hostiles . | . . Parts Melted 3 | . 3 Heat Transferred 407 | . 407 Parts Sabotaged . | . . Parts Stolen . | . . Parts Stripped . | . . Power Chain Reactions . | . . Alert | -11 -10 ------- Run | Yrd Mat Peak Influence 87 | . 87 Initial . | . . Average 15 | . 18 Maximum Alert Level . | . . Low Security (%) 100 | 100 100 Level 1 . | . . Level 2 . | . . Level 3 . | . . Level 4 . | . . Level 5 . | . . High Security . | . . Max Security . | . . Squads Dispatched 1 | . 1 Investigation . | . . Extermination . | . . Reinforcement 1 | . 1 Assault . | . . Garrison . | . . Intercept . | . . Searches Triggered . | . . Construction Impeded . | . . Haulers Reinforced . | . . Active Scanning Responses . | . . Cargo Convoy Interrupts . | . . Stealth | -11 -10 --------- Run | Yrd Mat Distress Signals 2 | . 2 Communications Jammed . | . . Distress Signals . | . . Times Spotted 12 | . 12 Peak Tracking Total 6 | . 6 Tactical Retreats 1 | . 1 Traps | -11 -10 ------- Run | Yrd Mat Traps Triggered . | . . Indirectly . | . . Trap Hack Attempts . | . . Triggered . | . . Disarmed . | . . Reprogrammed . | . . Reused . | . . Traps Extracted . | . . Installed . | . . Triggered . | . . Machines | -11 -10 ---------- Run | Yrd Mat Machines Disabled . | . . Max in Single Turn . | . . Machines Repaired . | . . Machines Dismantled . | . . Machines Sabotaged . | . . Overloaded Fab Kills . | . . Hacking | -11 -10 --------- Run | Yrd Mat Machines Accessed 1 | . 1 Terminals 1 | . 1 Fabricators . | . . Repair Stations . | . . Recycling Units . | . . Scanalyzers . | . . Garrison Access . | . . Total Hacks 2 | . 2 Successful 1 | . 1 Failed 1 | . 1 Catastrophic . | . . Database Lockouts . | . . Manual 3 | . 3 Terminals 2 | . 2 Fabricators . | . . Repair Stations . | . . Recycling Units . | . . Scanalyzers . | . . Garrison Access . | . . Terminal Hacks . | . . Fabricator Hacks . | . . Repair Station Hacks . | . . Recycling Unit Hacks . | . . Scanalyzer . | . . Garrison Access Hacks . | . . Unauthorized Hacks 1 | . 1 Terminals 1 | . 1 Botnet 1 | . 1 Fabricators . | . . Repair Stations . | . . Recycling Units . | . . Scanalyzers . | . . Garrison Access . | . . Data Cores Recovered . | . . Used . | . . Hacking Detections . | . . Full Trace Events . | . . Feedback Events . | . . Feedback Blocked . | . . Robot Schematics Acquired . | . . Robots Built . | . . Authchips . | . . Time . | . . Total Robot Build Rating . | . . Part Schematics Acquired . | . . Parts Built . | . . Authchips . | . . Time . | . . Total Part Build Rating . | . . Parts Repaired . | . . Time . | . . Parts Recycled . | . . Recycled Matter . | . . Retrieved Matter . | . . Retrieved Components . | . . Parts Scanalyzed . | . . Part Schematics Acquired . | . . Parts Damaged . | . . Bothacking | -11 -10 ------------ Run | Yrd Mat Used RIF Installer . | . . Robots Hacked . | . . Non-combat . | . . Combat . | . . Robot Hacks Applied . | . . Relay Couplers Released . | . . Fabnet Peak Effective % . | . . Robots Rewired . | . . Allies Hacked . | . . Hacks Repelled . | . . Allies | -11 -10 -------- Run | Yrd Mat Total Allies . | . . Largest Group . | . . Highest-Rated Group . | . . Highest-Rated Ally . | . . Total Orders . | . . Ally Attacks . | . . Total Damage . | . . Kills . | . . Allies Corrupted . | . . Allies Melted . | . . Intel | -11 -10 ------- Run | Yrd Mat Robot Analysis Total . | . . Derelict Logs Recovered . | . . Drone Launches . | . . Drone Recoveries . | . . Exploration | -11 -10 ------------- Run | Yrd Mat Turns Passed 389 | 49 340 Spaces Moved 232 | 45 187 Core 19 | 15 4 Treads . | . . Legs 213 | 30 183 Wheels . | . . Hover . | . . Flight . | . . Fastest Speed 50 | 50 50 Average Speed 114 | 96 118 Slowest Speed 120 | 120 120 Overloaded Moves . | . . Propulsion Burnouts . | . . Robots Hopped . | . . Cave-ins Triggered . | . . Exploration Rate (%) 19 | 4 35 Regions Visited 1 Branch Regions . Pre-discovered Areas . | . . Known Exits Taken . | . . Unknown Exits Taken 1 | 1 . Scrap Searched . | . . Spaces Dug . | . . Terrain Destroyed . | . . Melee . | . . Projectile . | . . AOE . | . . Terrain Rammed . | . . Walls Destroyed . | . . Machines Disabled . | . . Actions | -11 -10 --------- Run | Yrd Mat Total 304 | 48 256 Wait 6 | . 6 Move 231 | 44 187 Hop . | . . Pick Up 3 | . 3 Fast Attach 7 | 4 3 Attach 5 | . 5 Detach 4 | . 4 Swap . | . . Drop 2 | . 2 Fire 46 | . 46 Melee . | . . Ram . | . . Kick . | . . Crush . | . . Escape Stasis . | . . Rewire . | . . Trap . | . . Miscellaneous . | . . Route ------- -11/Scrapyard -10/Materials History --------- Turn | Location | Event 4 | -11/Scrapyard | Discovered new exit (range 15) 50 | -11/Scrapyard | Entered Materials 301 | -10/Materials | Build established: Mutant 373 | -10/Materials | Core integrity fell below 50% 385 | -10/Materials | Core integrity fell below 20% 390 | -10/Materials | Destroyed by G-34 Mercenary with Small Laser Last Messages --------------- 00332_ K-01 Serf collects debris. 00345_ R-06 Scavenger collects Corrupted Wheel. 00357_ EM Pulse Gun destroyed. 00360_ W-16 Scout sends out distress signal. 00360_ G-34 Mercenary suffers critical hit (Burn). 00363_ K-01 Serf collects debris. 00364_ Heat Sink melted. 00364_ Aluminum Leg melted. 00364_ G-34 Mercenary destroyed. 00365_ Seismic Detector destroyed. 00368_ Aluminum Leg destroyed. 00378_ R-06 Scavenger collects Ion Engine. 00379_ Ion Engine destroyed. 00381_ Welding Torch destroyed. 00384_ Aluminum Leg destroyed. 00386_ Overheating: Med. Laser damaged (-1). 00387_ Sml. Laser melted. 00387_ G-34 Mercenary destroyed. 00389_ Med. Laser broken. 00389_ Overheating: Short circuit. Map ----- +----------------------------------------------------+ | ?????????????????????????????????????? | | ?????????????????????????????????????? | | ?????????????????????????????????????? | | ?????????????????????? ??????????????? | | ?????????????????????? ??????????????? | | ?????????????????????# ??????????????? | | ?????????????????????# ???????????? | | ?????????????????????# ###????????+ | | ?????????????????????# #????????# | | ?????????????????????+ ????????# | | ?????????????????????# #????????# | | ??????? ????????????# #????????# | | ??????# ???? ??????# #????????# | | ??????# ???? ?????# #????????# | | ??????# ?????? ? ?# ########## | | ?????## ########+### # # | | ?????# # """ # | | ????## t ^ # """ # | | ????#T ^ # """ # | | ?????# """ """ + # | | ?????# !] """ """ # ! # | | ?????# ]] ^""" """ #= + | | ?????# w # "Y" # | | ?????# r g # """ # | | ?????# g g ########## | | ?????# @ #???????# | | ?????# =% ########## #???????# | | ?????# #????????# #???????# | | ?????# #????????/ ??????# | | ?????# #????????# # ????# | | ?????# #????????# #? #???# ### | | ?????# #????????##/##??##???# #?? | | ?????# ?????????? ????????# #?? | | ?????# ?????????? ?????????# #?? | | ?????# ????????????????????# #?? | | ?????########????????????????????# #?? | | ???????????????????????????????### #?? | | ???????????????????????????????# #?? | | ???????????????????????????????# ### | | ???????????????????????????????# # | | ???????????????????????????????# # " | | ??????????????????????????????## # " | | ??????????????????????????????#T # " | | ??????????????????????????????## + | | ???????????????????????????????# # | | ???????????????????????????????# # | | ???????????????????????????????# # | | ???????????????????????????????# ### | | ???????????????????????????????# #?? | | ???????????????????????????????# #?? | +----------------------------------------------------+ Best States ------------- Heat Dissipation 25 Energy Generation 10 Energy Capacity 250 Matter Stores 300 Matter Capacity 300 Sight Range 16 Terrain Scan Density 10 Evasion (%) 55 Item Schematics ----------------- None Robot Schematics ------------------ None Fabricated ------------ Nothing Alien Tech Used ----------------- None Achievements -------------- None Challenges ------------ None Game ------ Seed NavigationChipBox Manual? 0 Play Time 00:05:47 Cumulative 35.0 hours Start 2024.04.05 @ 14:18:50 End 2024.04.05 @ 14:24:27 Sessions 1 Manual Loads 0 Difficulty Rogue Special Mode None Game No. 104 Rogue 64 Adventurer 14 Explorer 26 Win Type - Total 0 Types 0/0/0/0/0/0/0/0/0 Lore% 23 Gallery% 31 Achievement% 27 Wizard Run 0 Options --------- Layout 0 ASCII 0 Keyboard 1 Movement Vi Keybinds 0 Fullscreen 1 Font 18/SmallcapsGlow Map View 76x50 Zoom Use 0% Tactical HUD 1 Map Filters NONE Filters NONE Steam 1 RUN: c6388a1a-1290-4a1e-b9f6-46d9036e67d8